bitfinex/quotes_BTCUSD_20250110
["timestamp","ask_amount","ask_price","bid_price","bid_amount"]
[1736479985649,3.06929357,93743.0,93742.0,0.12293026]
[1736479985864,3.17359333,93743.0,93742.0,0.08635026]
[1736479986407,3.17359333,93743.0,93742.0,0.08235026]
[1736479986844,2.86990133,93743.0,93742.0,0.05035026]
[1736479987520,2.87590133,93743.0,93742.0,0.05135026]
[1736479987730,2.87590133,93743.0,93742.0,0.01426026]
[1736479987930,2.86990133,93743.0,93742.0,0.01426026]
[1736479988139,2.87590133,93743.0,93742.0,0.01526026]
[1736479988346,2.87190133,93743.0,93742.0,0.01526026]
[1736479988573,2.97190133,93743.0,93742.0,0.01526026]
[1736479988820,0.363378,93730.0,93729.0,0.25426743]
[1736479989036,1.776983,93730.0,93729.0,0.25426743]
[1736479989251,1.99940129,93730.0,93729.0,0.25426743]
[1736479989453,1.96333829,93730.0,93729.0,0.25426743]
[1736479989680,1.96333829,93730.0,93717.0,0.25426743]
[1736479989681,0.36339,93725.0,93717.0,0.25426743]
[1736479990020,1.16396229,93725.0,93717.0,0.25426743]
[1736479990224,1.14531829,93725.0,93724.0,0.00031732]
[1736479991049,1.14895386,93725.0,93724.0,0.00031732]
[1736479991398,1.13191586,93725.0,93724.0,0.00031732]
[1736479991618,1.21642862,93725.0,93724.0,0.00031732]
[1736479992017,1.21942862,93725.0,93724.0,0.00031732]
[1736479992227,1.2339194,93725.0,93724.0,0.00031732]
[1736479992635,0.4889674,93725.0,93724.0,0.00031732]
[1736479992859,0.38466764,93725.0,93724.0,0.00031732]
[1736479993058,0.76450264,93725.0,93724.0,0.00031732]
[1736479993256,0.69567264,93725.0,93724.0,0.00031732]
[1736479993659,0.58210664,93725.0,93724.0,0.00031732]
[1736479994165,0.15,93724.0,93721.0,0.07548772]
[1736479994379,0.363397,93722.0,93721.0,0.07554513]
[1736479994585,0.808319,93722.0,93721.0,0.07554513]
[1736479994785,0.81215237,93722.0,93721.0,5.741e-05]
[1736479995720,0.81415237,93722.0,93721.0,5.741e-05]
[1736479996354,0.81515237,93722.0,93721.0,5.741e-05]
[1736479996563,0.91945213,93722.0,93721.0,5.741e-05]
[1736479997598,0.366397,93722.0,93721.0,0.00143972]
[1736479997807,0.366397,93722.0,93721.0,0.12915741]
[1736479998019,0.153,93722.0,93721.0,0.13054347]
[1736479998567,0.21132678,93722.0,93721.0,0.13054347]
[1736479998770,0.20932678,93722.0,93721.0,0.13054347]
[1736479999015,0.21032678,93722.0,93721.0,0.13054347]
[1736479999224,0.21032678,93722.0,93721.0,0.13154347]
[1736479999430,0.20932678,93722.0,93721.0,0.13154347]
[1736479999636,0.21318396,93722.0,93721.0,0.13154347]
[1736480000043,0.40905496,93722.0,93721.0,0.00244347]
[1736480000886,0.40905496,93722.0,93721.0,0.00144347]
[1736480001309,0.41105496,93722.0,93721.0,0.00144347]
[1736480002721,0.35272818,93722.0,93721.0,0.00144347]
[1736480003208,0.153,93722.0,93721.0,0.08144347]
[1736480003447,0.153,93722.0,93721.0,0.08005741]
[1736480003709,0.153,93722.0,93721.0,0.12915741]
[1736480003974,0.151,93722.0,93721.0,0.12915741]
[1736480004206,0.151,93722.0,93721.0,0.13054498]
[1736480004454,0.153,93722.0,93721.0,0.13054498]
[1736480004715,0.151,93722.0,93721.0,0.13054498]
[1736480004924,0.15,93722.0,93721.0,0.13054498]
[1736480005341,0.151,93722.0,93721.0,0.13054498]
[1736480005771,0.15,93722.0,93721.0,0.13054498]
[1736480007235,0.20902678,93722.0,93721.0,0.13054498]
[1736480007445,0.20902678,93722.0,93721.0,0.38481241]
[1736480007648,0.20902678,93722.0,93721.0,0.38581241]
[1736480009232,0.207613,93722.0,93721.0,0.38581241]
[1736480009445,0.207613,93722.0,93721.0,0.25671241]
[1736480009683,0.72043729,93722.0,93721.0,0.25671241]
[1736480009890,0.80348429,93722.0,93721.0,0.25671241]
[1736480010583,0.80348429,93722.0,93721.0,0.25571241]
[1736480010807,0.80848429,93722.0,93721.0,0.25571241]
[1736480011020,0.38989129,93722.0,93721.0,0.25571241]
[1736480011242,0.33086451,93722.0,93721.0,0.25571241]
[1736480011455,0.33286451,93722.0,93721.0,0.25571241]
[1736480011970,0.15358622,93722.0,93721.0,0.25571241]
[1736480012183,0.15558622,93722.0,93721.0,0.25571241]
[1736480013006,0.21517162,93722.0,93721.0,0.25571241]
[1736480013201,0.53210462,93722.0,93721.0,0.25571241]
[1736480013406,0.52710462,93722.0,93721.0,0.25571241]
[1736480013832,0.53210462,93722.0,93721.0,0.25571241]
[1736480014746,0.53010462,93722.0,93721.0,0.25571241]
[1736480014946,0.53398359,93722.0,93721.0,0.25571241]
[1736480015152,0.53598359,93722.0,93721.0,0.25571241]
[1736480016410,0.53598359,93722.0,93721.0,0.1327575]
[1736480016649,0.53598359,93722.0,93721.0,0.13408835]
[1736480016860,0.53598359,93722.0,93721.0,0.1327575]
[1736480017544,0.63598359,93722.0,93721.0,0.1327575]
[1736480017786,0.65898359,93722.0,93721.0,0.1327575]
[1736480018008,0.65898359,93722.0,93712.0,0.0001704]
[1736480018236,0.363417,93713.0,93712.0,0.00031735]
[1736480018439,1.320776,93713.0,93712.0,0.00031735]
[1736480018619,1.175399,93713.0,93712.0,0.00031735]
[1736480019237,1.07752,93713.0,93712.0,0.00031735]
[1736480021404,1.024227,93713.0,93712.0,0.00031735]
[1736480021623,0.15,93712.0,93711.0,0.4]
[1736480021827,1.78636159,93712.0,93711.0,0.4]
[1736480022036,0.74453259,93712.0,93711.0,0.35312063]
[1736480023744,0.75153259,93712.0,93711.0,0.35412063]
[1736480023923,0.75153259,93712.0,93711.0,0.35546199]
[1736480023924,0.75453259,93712.0,93711.0,0.35546199]
[1736480024124,0.81411799,93712.0,93711.0,0.35546199]
[1736480029474,0.80711799,93712.0,93711.0,0.35446199]
[1736480029745,0.81411799,93712.0,93711.0,0.35546199]
[1736480029980,0.80711799,93712.0,93711.0,0.35446199]
[1736480030385,0.81411799,93712.0,93711.0,0.35546199]
[1736480030592,0.81111799,93712.0,93711.0,0.35546199]
[1736480030808,0.80411799,93712.0,93711.0,0.35446199]
[1736480031009,0.80711799,93712.0,93711.0,0.35446199]
[1736480031222,0.81411799,93712.0,93711.0,0.35546199]
[1736480032505,0.34646699,93712.0,93711.0,0.35546199]
[1736480032730,1.46250799,93712.0,93711.0,0.35546199]
[1736480032942,0.89326699,93712.0,93711.0,0.35546199]
[1736480033150,0.89326699,93712.0,93711.0,0.35412063]
[1736480033376,0.89326699,93712.0,93711.0,0.35546825]
[1736480035849,0.89326699,93712.0,93711.0,0.31645491]
[1736480038565,0.83368159,93712.0,93711.0,0.31645491]
[1736480038766,0.8298,93712.0,93711.0,0.31645491]
[1736480039777,0.16756,93712.0,93711.0,0.39395491]
[1736480039978,0.16,93712.0,93711.0,0.39395491]
[1736480042117,0.832806,93712.0,93711.0,0.39395491]
[1736480042325,0.816806,93712.0,93711.0,0.39395491]
[1736480042834,0.92110576,93712.0,93711.0,0.39395491]
[1736480043282,1.02110576,93712.0,93711.0,0.31645491]
[1736480043497,1.02499007,93712.0,93711.0,0.27803491]
[1736480043918,1.02499007,93712.0,93711.0,0.27668729]
[1736480044611,1.02499007,93712.0,93711.0,0.23908729]
[1736480047418,1.02499007,93712.0,93711.0,0.21508079]
[1736480047846,1.04799007,93712.0,93711.0,0.17692079]
[1736480049718,2.78571007,93712.0,93711.0,0.12908484]
[1736480051701,2.78571007,93712.0,93711.0,0.02625014]
[1736480051932,2.88571007,93712.0,93711.0,0.01318056]
[1736480053631,2.53587607,93712.0,93711.0,0.01318056]
[1736480053841,1.096236,93712.0,93711.0,0.01318056]
[1736480054735,1.093236,93712.0,93711.0,0.01318056]
[1736480054962,1.072335,93712.0,93711.0,0.01218056]
[1736480055165,1.075335,93712.0,93711.0,0.01218056]
[1736480055298,1.17963476,93712.0,93711.0,0.01218056]
[1736480055723,1.17663476,93712.0,93711.0,0.01218056]
[1736480056540,1.18658374,93712.0,93711.0,0.01318056]
[1736480057007,0.95928398,93712.0,93711.0,0.01318056]
[1736480057244,0.792884,93712.0,93711.0,0.09598056]
[1736480057446,0.686884,93712.0,93711.0,0.09498056]
[1736480057657,0.666404,93712.0,93711.0,0.09498056]
[1736480057785,0.77870376,93712.0,93711.0,0.09598056]
[1736480057998,0.16556,93712.0,93711.0,0.14248056]
[1736480058214,0.297414,93712.0,93711.0,0.14248056]
[1736480058732,0.294414,93712.0,93711.0,0.14248056]
[1736480059282,0.296414,93712.0,93711.0,0.14248056]
[1736480059530,0.38210573,93712.0,93711.0,0.14248056]
[1736480059739,0.37710573,93712.0,93711.0,0.14148056]
[1736480059954,0.38210573,93712.0,93711.0,0.14148056]
[1736480060777,0.38010573,93712.0,93711.0,0.14148056]
[1736480061285,0.296414,93712.0,93711.0,0.14148056]
[1736480069434,0.291414,93712.0,93711.0,0.14148056]
[1736480070093,0.294414,93712.0,93711.0,0.14148056]
[1736480070428,0.291414,93712.0,93711.0,0.14148056]
[1736480070656,0.296414,93712.0,93711.0,0.14148056]
[1736480070856,0.294414,93712.0,93711.0,0.14148056]
[1736480071086,0.296414,93712.0,93711.0,0.14148056]
[1736480072217,0.275877,93712.0,93711.0,0.14148056]
[1736480072414,0.265183,93712.0,93711.0,0.14148056]
[1736480072652,0.257623,93712.0,93711.0,0.14148056]
[1736480072855,0.157,93712.0,93711.0,0.14148056]
[1736480073416,0.157,93712.0,93711.0,0.46408056]
[1736480073619,0.155,93712.0,93711.0,0.46408056]
[1736480073825,0.005,93712.0,93711.0,0.46543425]
[1736480074027,0.002,93712.0,93711.0,0.33613425]
[1736480074236,0.005,93712.0,93711.0,0.33613425]
[1736480074457,0.003,93712.0,93711.0,0.39100543]
[1736480074722,0.01694224,93713.0,93712.0,0.338219]
[1736480074919,0.213391,93725.0,93712.0,0.338219]
[1736480075120,0.213391,93725.0,93713.0,0.00106694]
[1736480075326,0.213391,93725.0,93717.0,0.0483]
[1736480075583,0.15,93724.0,93718.0,0.1271]
[1736480075756,0.15,93724.0,93719.0,0.1271]
[1736480075959,0.15,93724.0,93721.0,0.0788]
[1736480076170,0.15,93724.0,93723.0,0.0788]
[1736480076499,0.15,93724.0,93723.0,0.12844405]
[1736480076710,0.01818604,93725.0,93724.0,0.1271]
[1736480076913,0.01618604,93725.0,93724.0,0.1271]
[1736480077114,0.01618604,93725.0,93724.0,0.12844396]
[1736480077325,0.15,93727.0,93725.0,0.0757]
[1736480077742,0.15,93727.0,93726.0,0.04864377]
[1736480077947,0.15,93727.0,93726.0,0.12434377]
[1736480078158,0.09827653,93730.0,93726.0,0.12434377]
[1736480078368,0.01576287,93730.0,93727.0,0.123]
[1736480078599,0.213369,93735.0,93728.0,0.0757]
[1736480078744,0.213379,93730.0,93728.0,0.07704358]
[1736480081633,0.213379,93730.0,93728.0,0.07804358]
[1736480082242,0.213379,93730.0,93728.0,0.08204358]
[1736480082445,0.213379,93730.0,93729.0,0.4025]
[1736480082624,0.213379,93730.0,93729.0,0.40382265]
[1736480083833,0.213379,93730.0,93729.0,0.40782265]
[1736480084032,0.213379,93730.0,93729.0,0.40882265]
[1736480085219,0.213379,93730.0,93729.0,0.40482265]
[1736480085594,0.213379,93730.0,93729.0,0.40882265]
[1736480085805,0.213379,93730.0,93729.0,0.40482265]
[1736480086128,0.213379,93730.0,93729.0,0.40382265]
[1736480086327,0.213379,93730.0,93729.0,0.40782265]
[1736480087096,0.213379,93730.0,93729.0,0.40882265]
[1736480087478,0.213379,93730.0,93729.0,0.40782265]
[1736480087886,0.213379,93730.0,93729.0,0.40882265]
[1736480097682,0.01559998,93735.0,93730.0,0.082]
[1736480097952,0.213369,93734.0,93731.0,0.0475]
[1736480098160,0.213369,93734.0,93732.0,0.082]
[1736480098535,0.213369,93734.0,93733.0,0.00131293]
[1736480098744,0.213356,93740.0,93733.0,0.08331293]
[1736480098946,0.213356,93740.0,93735.0,0.082]
[1736480099287,0.21336,93738.0,93736.0,0.00131265]
[1736480100321,0.2710316,93738.0,93737.0,0.3226]
[1736480100527,1.198652,93738.0,93737.0,0.32390705]
[1736480100747,1.20272977,93738.0,93737.0,0.32390705]
[1736480100952,1.20272977,93738.0,93737.0,0.3226]
[1736480100953,0.54657677,93738.0,93737.0,0.3226]
[1736480101187,0.50959477,93738.0,93737.0,0.3226]
[1736480101391,0.50959477,93738.0,93737.0,0.32390155]
[1736480102295,0.36743777,93738.0,93737.0,0.32390155]
[1736480102430,0.36336,93738.0,93737.0,0.32390155]
[1736480104579,0.36336,93738.0,93737.0,0.40590155]
[1736480105586,0.36336,93738.0,93737.0,0.45340155]
[1736480107973,0.36744079,93738.0,93737.0,0.32390155]
[1736480108771,0.54583679,93738.0,93737.0,0.13102208]
[1736480109025,0.62893679,93738.0,93737.0,0.06193995]
[1736480109236,0.57354079,93738.0,93737.0,0.0606384]
[1736480109646,0.363419,93712.0,93709.0,0.0833]
[1736480109871,1.451492,93712.0,93708.0,0.0001704]
[1736480110078,0.887777,93712.0,93711.0,0.00125759]
[1736480110292,0.15,93711.0,93708.0,0.0001704]
[1736480110588,0.597846,93711.0,93708.0,0.0001704]
[1736480110831,0.363426,93709.0,93708.0,0.0001704]
[1736480111034,1.243955,93709.0,93708.0,0.0001704]
[1736480111241,1.2480379,93709.0,93708.0,0.0001704]
[1736480112273,0.9694569,93709.0,93708.0,0.0001704]
[1736480113647,0.9714569,93709.0,93708.0,0.0001704]
[1736480113819,0.8680419,93709.0,93708.0,0.0001704]
[1736480114938,0.8068249,93709.0,93708.0,0.0001704]
[1736480115118,0.627257,93709.0,93708.0,0.0001704]
[1736480115332,0.366426,93709.0,93708.0,0.0001704]
[1736480115545,0.78871976,93709.0,93708.0,0.0001704]
[1736480116362,0.79080414,93709.0,93708.0,0.0001704]
[1736480116781,0.79280414,93709.0,93708.0,0.0001704]
[1736480116956,0.80036414,93709.0,93708.0,0.0001704]
[1736480117356,0.79936414,93709.0,93708.0,0.0001704]
[1736480117792,0.80536414,93709.0,93708.0,0.0001704]
[1736480121402,0.79936414,93709.0,93708.0,0.0001704]
[1736480121831,0.80436414,93709.0,93708.0,0.0001704]
[1736480122040,0.80236414,93709.0,93708.0,0.0001704]
[1736480122237,0.70006438,93709.0,93708.0,0.0001704]
[1736480124825,0.213444,93701.0,93692.0,0.3226]
[1736480125057,0.363456,93696.0,93692.0,0.3226]
[1736480125471,0.583085,93696.0,93692.0,0.3226]
[1736480125676,0.65603254,93696.0,93692.0,0.3226]
[1736480125883,0.66011795,93696.0,93692.0,0.3226]
[1736480126495,0.55871141,93696.0,93692.0,0.3226]
[1736480127624,0.55871141,93696.0,93695.0,0.0011704]
[1736480128674,0.554626,93696.0,93695.0,0.0011704]
[1736480128908,0.555626,93696.0,93695.0,0.0011704]
[1736480129561,0.512086,93696.0,93695.0,0.0011704]
[1736480129970,0.512086,93696.0,93695.0,0.0001704]
[1736480130398,0.364456,93696.0,93695.0,0.0001704]
[1736480130584,0.364456,93696.0,93695.0,0.0821704]
[1736480131001,1.209893,93696.0,93695.0,0.0821704]
[1736480131213,1.220589,93696.0,93695.0,0.0001704]
[1736480131433,1.32897489,93696.0,93695.0,0.0001704]
[1736480132274,1.32797489,93696.0,93695.0,0.0001704]
[1736480132689,1.32997489,93696.0,93695.0,0.0001704]
[1736480133136,1.26419189,93696.0,93695.0,0.0001704]
[1736480133361,1.20608976,93696.0,93695.0,0.0001704]
[1736480134004,1.21008976,93696.0,93695.0,0.0001704]
[1736480135190,1.2141764,93696.0,93695.0,0.0001704]
[1736480137469,0.506245,93696.0,93695.0,0.0001704]
[1736480141909,0.506245,93696.0,93683.0,0.0001706]
[1736480141910,0.15,93691.0,93683.0,0.0001706]
[1736480142141,0.15,93689.0,93683.0,0.0001706]
[1736480142342,0.363483,93684.0,93683.0,0.0001706]
[1736480142541,0.701769,93684.0,93683.0,0.0001706]
[1736480143001,0.679669,93684.0,93683.0,0.0001706]
[1736480143208,0.363483,93684.0,93683.0,0.0001706]
[1736480143418,0.363483,93684.0,93683.0,0.0810706]
[1736480143729,0.363483,93684.0,93683.0,0.1294706]
[1736480145254,0.363483,93684.0,93683.0,0.1314706]
[1736480145434,0.363483,93684.0,93683.0,0.13518749]
[1736480146208,0.363483,93684.0,93683.0,0.13418749]
[1736480146411,0.363483,93684.0,93683.0,0.13718749]
[1736480146708,0.363483,93684.0,93683.0,0.13618749]
[1736480147490,0.363483,93684.0,93683.0,0.13308749]
[1736480147893,0.363483,93684.0,93683.0,0.13508749]
[1736480148304,0.45737293,93684.0,93683.0,0.13508749]
[1736480151080,0.77810793,93684.0,93683.0,0.00578749]
[1736480151278,0.78219534,93684.0,93683.0,0.00578749]
[1736480151477,0.78219534,93684.0,93683.0,0.0020706]
[1736480152063,0.78219534,93684.0,93683.0,7.06e-05]
[1736480152494,0.78619534,93684.0,93683.0,7.06e-05]
[1736480152693,0.78210793,93684.0,93683.0,7.06e-05]
[1736480153102,0.78210793,93684.0,93683.0,1e-08]
[1736480153103,0.86340793,93684.0,93683.0,1e-08]
[1736480153365,0.86340793,93684.0,93659.0,0.3226]
[1736480153366,0.213538,93660.0,93659.0,0.3226]
[1736480153570,0.363538,93660.0,93659.0,0.3226]
[1736480153813,0.363538,93660.0,93659.0,0.32618797]
[1736480154610,0.363538,93660.0,93659.0,0.32918797]
[1736480154818,0.363538,93660.0,93659.0,0.32967819]
[1736480155025,0.363538,93660.0,93659.0,0.32667819]
[1736480155238,0.363538,93660.0,93659.0,0.32967819]
[1736480155454,0.15,93660.0,93659.0,0.40967819]
[1736480155663,0.15,93660.0,93659.0,0.45777819]
[1736480155886,0.213505,93675.0,93660.0,0.08]
[1736480156065,0.434573,93674.0,93663.0,0.0481]
[1736480156319,0.213519,93669.0,93665.0,0.08]
[1736480156525,0.221066,93674.0,93665.0,0.08]
[1736480156526,0.213506,93674.0,93665.0,0.08]
[1736480156735,0.05729981,93688.0,93667.0,0.536122]
[1736480156953,0.213492,93681.0,93670.0,0.0804]
[1736480157133,0.213492,93681.0,93672.0,0.0804]
[1736480157134,0.15,93680.0,93672.0,0.0804]
[1736480157376,0.213492,93681.0,93674.0,0.0804]
[1736480157786,0.15,93680.0,93675.0,0.00358599]
[1736480157988,0.213497,93678.0,93675.0,0.00358599]
[1736480158204,0.15,93676.0,93675.0,0.00358599]
[1736480158693,0.363504,93675.0,93674.0,0.0814]
[1736480158894,0.363504,93675.0,93674.0,0.0804]
[1736480159034,0.44618842,93675.0,93674.0,0.0804]
[1736480159460,0.15,93675.0,93674.0,0.0804]
[1736480159652,0.15,93675.0,93674.0,0.08398611]
[1736480160263,0.15,93675.0,93674.0,0.40658611]
[1736480160389,0.15,93675.0,93674.0,0.40758611]
[1736480160846,0.15,93675.0,93674.0,0.40958611]
[1736480161044,0.22151152,93675.0,93674.0,0.40958611]
[1736480161610,0.16381212,93675.0,93674.0,0.40958611]
[1736480162273,0.16381212,93675.0,93674.0,0.32918611]
[1736480162449,1.01505912,93675.0,93674.0,0.32918611]
[1736480163080,0.95491112,93675.0,93674.0,0.32818611]
[1736480163351,0.92433012,93675.0,93674.0,0.32618611]
[1736480163558,1.02862988,93675.0,93674.0,0.32918611]
[1736480163970,1.02862988,93675.0,93674.0,0.32618611]
[1736480164176,1.02862988,93675.0,93674.0,0.32818611]
[1736480164386,1.02862988,93675.0,93674.0,0.32918611]
[1736480164599,1.02862988,93675.0,93674.0,0.32718611]
[1736480164806,0.93575288,93675.0,93674.0,0.32718611]
[1736480165011,0.89000188,93675.0,93674.0,0.32718611]
[1736480165672,0.89000188,93675.0,93674.0,0.32618611]
[1736480165889,0.89100188,93675.0,93674.0,0.32618611]
[1736480166279,0.89100188,93675.0,93674.0,0.00358611]
[1736480166698,0.89100188,93675.0,93658.0,0.075]
[1736480166699,0.363538,93660.0,93658.0,0.075]
[1736480167134,0.363538,93660.0,93659.0,0.00408561]
[1736480167645,0.79678,93660.0,93659.0,0.00049022]
[1736480167836,0.658691,93660.0,93659.0,0.00049022]
[1736480168081,0.658691,93660.0,93659.0,0.00649022]
[1736480168281,0.76299076,93660.0,93659.0,0.00649022]
[1736480168918,0.77682439,93660.0,93659.0,0.00849022]
[1736480169768,0.77682439,93660.0,93659.0,0.00249022]
[1736480169977,0.77682439,93660.0,93659.0,0.00049022]
[1736480170188,0.77882439,93660.0,93659.0,0.00049022]
[1736480170393,0.75825839,93660.0,93659.0,0.00049022]
[1736480172088,0.58733563,93660.0,93659.0,0.00049022]
[1736480172293,0.57267263,93660.0,93659.0,0.00049022]
[1736480174074,0.37937163,93660.0,93659.0,0.00049022]
[1736480174268,0.52373363,93660.0,93659.0,0.00049022]
[1736480176886,0.37937163,93660.0,93659.0,0.00049022]
[1736480177121,0.64369663,93660.0,93659.0,0.00049022]
[1736480177591,0.60630963,93660.0,93659.0,0.00049022]
[1736480177826,0.54076963,93660.0,93659.0,0.00049022]
[1736480178107,0.16583363,93660.0,93659.0,0.00049022]
[1736480178354,0.16583363,93660.0,93659.0,0.07549022]
[1736480178850,0.16483363,93660.0,93659.0,0.07909232]
[1736480179095,0.16583363,93660.0,93659.0,0.07909232]
[1736480179504,0.01583363,93660.0,93659.0,0.12729232]
[1736480179711,0.01483363,93660.0,93659.0,0.12835999]
[1736480179919,0.01483363,93660.0,93659.0,0.12929232]
[1736480180300,0.01383363,93660.0,93659.0,0.12929232]
[1736480180678,0.001,93660.0,93659.0,0.12929232]
[1736480181442,0.18776694,93660.0,93659.0,0.12929232]
[1736480181647,0.18776694,93660.0,93659.0,0.12729232]
[1736480181830,0.18776694,93660.0,93659.0,0.13529232]
[1736480181831,0.18876694,93660.0,93659.0,0.13529232]
[1736480182029,0.18876694,93660.0,93659.0,0.13829232]
[1736480182283,0.151,93660.0,93659.0,0.13829232]
[1736480182488,0.151,93660.0,93659.0,0.13529232]
[1736480182905,0.151,93660.0,93659.0,0.13829232]
[1736480183314,0.15,93660.0,93659.0,0.13029232]
[1736480183521,0.15,93660.0,93659.0,0.12729232]
[1736480183726,0.15,93660.0,93659.0,0.13229232]
[1736480184105,0.01313642,93663.0,93659.0,0.13229232]
[1736480184310,0.01313642,93663.0,93659.0,0.45489232]
[1736480184515,0.15,93665.0,93659.0,0.45489232]
[1736480184979,0.15,93665.0,93659.0,0.45189232]
[1736480185472,0.213529,93664.0,93659.0,0.45389232]
[1736480185648,0.15,93663.0,93659.0,0.45389232]
[1736480185833,0.15,93663.0,93659.0,0.45489232]
[1736480186635,0.15,93663.0,93659.0,0.44989232]
[1736480187096,0.15,93663.0,93659.0,0.45289232]
[1736480187326,0.15,93663.0,93659.0,0.44989232]
[1736480187836,0.15,93665.0,93659.0,0.45389232]
[1736480188295,0.15,93665.0,93659.0,0.45489232]
[1736480188814,0.15,93665.0,93659.0,0.45389232]
[1736480188993,0.15,93663.0,93659.0,0.45389232]
[1736480189193,0.15,93663.0,93659.0,0.45489232]
[1736480189698,0.15,93663.0,93659.0,0.45089232]
[1736480189965,0.15,93663.0,93659.0,0.44989232]
[1736480190155,0.15,93663.0,93659.0,0.45389232]
[1736480190368,0.15,93663.0,93659.0,0.45089232]
[1736480190773,0.15,93663.0,93659.0,0.45489232]
[1736480193063,0.0577053,93663.0,93659.0,0.45489232]
[1736480193269,0.2077053,93663.0,93659.0,0.45489232]
[1736480193683,0.15,93663.0,93659.0,0.45489232]
[1736480195886,0.213533,93662.0,93659.0,0.45489232]
[1736480196153,0.213538,93660.0,93659.0,0.45489232]
[1736480196345,0.363538,93660.0,93659.0,0.45489232]
[1736480196709,0.15,93660.0,93659.0,0.45389232]
[1736480196909,0.15,93660.0,93659.0,0.45089232]
[1736480197333,0.15,93660.0,93659.0,0.45489232]
[1736480197534,0.15,93660.0,93659.0,0.45089232]
[1736480197959,0.15,93660.0,93659.0,0.45589232]
[1736480198395,0.15,93660.0,93659.0,0.45489232]
[1736480198771,0.15,93660.0,93659.0,0.45689232]
[1736480199104,0.16288641,93660.0,93659.0,0.45689232]
[1736480199670,0.16288641,93660.0,93659.0,0.44989232]
[1736480199879,0.16288641,93660.0,93659.0,0.45489232]
[1736480203257,0.33366115,93660.0,93659.0,0.33169232]
[1736480204240,0.33366115,93660.0,93659.0,0.32769232]
[1736480204438,0.33366115,93660.0,93659.0,0.32669232]
[1736480204651,0.33366115,93660.0,93659.0,0.32869232]
[1736480205063,0.33774896,93660.0,93659.0,0.32869232]
[1736480206103,0.22596896,93660.0,93659.0,0.32869232]
[1736480206305,2.38681227,93660.0,93659.0,0.32669232]
[1736480206566,2.37421427,93660.0,93659.0,0.32309022]
[1736480206770,2.32830027,93660.0,93659.0,0.32309022]
[1736480206917,2.26855027,93660.0,93659.0,0.32309022]
[1736480207250,0.15,93659.0,93657.0,0.0001704]
[1736480207448,0.363542,93658.0,93657.0,0.00014698]
[1736480207682,2.83935143,93658.0,93657.0,0.00014698]
[1736480207853,3.03984643,93658.0,93657.0,0.00014698]
[1736480208065,2.51166123,93658.0,93657.0,0.00014698]
[1736480208283,2.37070623,93658.0,93657.0,0.00014698]
[1736480208697,2.63658554,93658.0,93657.0,0.00014698]
[1736480209104,2.63558554,93658.0,93657.0,0.00014698]
[1736480209543,2.49461523,93658.0,93657.0,0.00014698]
[1736480209793,2.63858554,93658.0,93657.0,0.00014698]
[1736480209991,2.58805974,93658.0,93657.0,0.00014698]
[1736480210196,2.06465974,93658.0,93657.0,0.00114698]
[1736480210345,1.85325043,93658.0,93657.0,0.00114698]
[1736480210551,1.48873143,93658.0,93657.0,0.00114698]
[1736480210756,1.44143743,93658.0,93657.0,0.00114698]
[1736480210977,1.42204143,93658.0,93657.0,0.00114698]
[1736480211589,0.68525362,93658.0,93657.0,0.00114698]
[1736480211901,0.67769362,93658.0,93657.0,0.00114698]
[1736480212053,0.68525362,93658.0,93657.0,0.00114698]
[1736480212261,0.67769362,93658.0,93657.0,0.00114698]
[1736480212466,0.53182062,93658.0,93657.0,0.00014698]
[1736480212644,0.53782062,93658.0,93657.0,0.00014698]
[1736480213047,0.53382062,93658.0,93657.0,0.00014698]
[1736480213250,0.006,93658.0,93657.0,0.00014698]
[1736480213691,0.002,93658.0,93657.0,0.00014698]
[1736480214022,0.213541,93659.0,93657.0,0.00374636]
[1736480214194,0.213541,93659.0,93657.0,0.00014698]
[1736480214425,0.213541,93659.0,93658.0,0.00359926]
[1736480214830,0.213541,93659.0,93657.0,0.00014698]
[1736480215139,0.213541,93659.0,93658.0,0.00359926]
[1736480215693,0.213541,93659.0,93657.0,0.00014698]
[1736480216127,0.213541,93659.0,93658.0,0.00359926]
[1736480216343,0.213541,93659.0,93658.0,0.08239926]
[1736480216588,0.213541,93659.0,93658.0,0.0788]
[1736480216829,0.213541,93659.0,93658.0,0.08239926]
[1736480217583,0.363541,93659.0,93658.0,0.08439926]
[1736480218058,0.15,93659.0,93658.0,0.1307]
[1736480218296,0.15,93659.0,93658.0,0.13429926]
[1736480218778,0.15,93659.0,93658.0,0.13529926]
[1736480222050,0.213511,93672.0,93659.0,0.0826]
[1736480222257,0.01297985,93661.0,93659.0,0.08366754]
[1736480222509,0.15,93664.0,93660.0,0.00359902]
[1736480222923,0.15,93664.0,93659.0,0.0826]
[1736480223158,0.15,93664.0,93661.0,0.0035989]
[1736480223336,0.213531,93663.0,93661.0,0.0035989]
[1736480223471,0.001,93661.0,93660.0,0.15237105]
[1736480223675,0.001,93661.0,93660.0,0.14877176]
[1736480223927,0.15,93664.0,93660.0,0.14877176]
[1736480224137,0.151,93664.0,93660.0,0.14877176]
[1736480224499,0.15,93664.0,93660.0,0.14877176]
[1736480224700,0.001,93661.0,93660.0,0.15677176]
[1736480225082,0.001,93661.0,93660.0,0.15077176]
[1736480225720,0.001,93661.0,93660.0,0.14877176]
[1736480225923,0.001,93661.0,93660.0,0.15177176]
[1736480226123,0.05048282,93661.0,93660.0,0.15177176]
[1736480226350,0.41248282,93661.0,93660.0,0.15177176]
[1736480226569,0.48849171,93661.0,93660.0,0.15777176]
[1736480226762,0.48749171,93661.0,93660.0,0.15177176]
[1736480227146,0.48849171,93661.0,93660.0,0.15977176]
[1736480227352,0.45103911,93661.0,93660.0,0.14877176]
[1736480227552,0.34612211,93661.0,93660.0,0.14877176]
[1736480227771,0.34612211,93661.0,93660.0,0.14977176]
[1736480228338,0.31752211,93661.0,93660.0,0.14977176]
[1736480229186,0.31752211,93661.0,93660.0,0.001]
[1736480231554,0.31343322,93661.0,93660.0,0.001]
[1736480234095,0.392327,93661.0,93660.0,0.001]
[1736480236173,0.577076,93660.0,93657.0,0.00014698]
[1736480236381,1.695458,93660.0,93657.0,0.00014698]
[1736480236584,0.363542,93658.0,93657.0,0.00014698]
[1736480236838,1.84656,93658.0,93657.0,0.00014698]
[1736480237036,1.68624082,93658.0,93657.0,0.00014698]
[1736480237691,1.68624082,93658.0,93657.0,0.00114698]
[1736480237954,1.68624082,93658.0,93657.0,0.00014698]
[1736480238214,1.68824082,93658.0,93657.0,0.00014698]
[1736480238662,1.68924082,93658.0,93657.0,0.00014698]